Cogmind - Beta 15 @@@ ROGUE MODE // 2025.06.06 @ 15:56:28 Player: xenophanez Result: Destroyed by G-34 Mercenary with Small Laser Performance ------------- Evolutions (0) 0 Regions Visited (1) 200 Robots Destroyed (14) 70 Value Destroyed (299) 299 Prototype IDs (0) 0 Alien Tech Used (0) 0 Bonus (0) 0 TOTAL SCORE: 569 Bonus ------- None Cogmind --------- Core Integrity 0/250 Matter 247/300 Energy 70/125 System Corruption 0% Temperature Cool (6) Movement Walking (120) Location -10/Materials Parts ------- > --- POWER (1) -------- Light Ion Engine > --- PROPULSION (2) --- Aluminum Leg Aluminum Leg > --- UTILITY (2) ------ Signal Interpreter > --- WEAPON (2) ------- Medium Laser Light Assault Rifle > --- INVENTORY (5) ---- Ion Engine Medium Battery (150) Small Matter Pod (39) Peak State ------------ > --- POWER ------------ Light Ion Engine > --- PROPULSION ------- Aluminum Leg Aluminum Leg > --- UTILITY ---------- Signal Interpreter > --- WEAPON ----------- Medium Laser Assault Rifle > --- INVENTORY -------- Aluminum Leg Aluminum Leg Aluminum Leg Aluminum Leg Medium Battery [Rating: 6] Favorites ----------- Power Light Ion Engine Engine Light Ion Engine Propulsion Aluminum Leg Leg Aluminum Leg Utility Signal Interpreter Processor Signal Interpreter Weapon Medium Laser Energy Gun Medium Laser Ballistic Gun Assault Rifle Build | -11 -10 ------- Run | Yrd Mat Slots Evolved . | . . Power . | . . Propulsion . | . . Utility . | . . Weapon . | . . Parts Attached 13 | 5 8 Power 3 | 1 2 Engine 3 | 1 2 Core . | . . Reactor . | . . Propulsion 4 | 2 2 Treads . | . . Leg 4 | 2 2 Wheel . | . . Hover . | . . Flight . | . . Utility 1 | . 1 Device . | . . Storage . | . . Processor 1 | . 1 Hackware . | . . Protection . | . . Artifact . | . . Weapon 5 | 2 3 Energy Gun 3 | 1 2 Energy Cannon . | . . Ballistic Gun 2 | 1 1 Ballistic Cannon . | . . Launcher . | . . Special Weapon . | . . Impact Weapon . | . . Slashing Weapon . | . . Piercing Weapon . | . . Special Melee Weapon . | . . Unidentified Prototypes . | . . Parts Lost 5 | . 5 Power 1 | . 1 Propulsion 2 | . 2 Utility . | . . Weapon 2 | . 2 Highest Loss Streak 5 | . 5 To Critical Strikes . | . . Average Backups 3 | . 4 Power . | . . Propulsion 1 | . 2 Utility 1 | . 1 Weapon . | . . Tool/Special . | . . Unused Backups 6 | . 6 Power . | . . Propulsion 3 | . 3 Utility 2 | . 2 Weapon 1 | . 1 Tool/Special . | . . Average Slot Usage (%) 73 | . 73 Engine 13 | . 13 Leg 27 | . 27 Processor 8 | . 8 Energy Gun 13 | . 13 Ballistic Gun 11 | . 11 Peak Build Rating 6 | 5 6 Average Rating 4 | 3 5 On Entrance 2 | . 5 Naked Turns . | . . Heaviest Build 7 | 7 7 Greatest Support 20 | 20 20 Greatest Overweight (x) 1 | . 1 Average Overweight (x) . | . . Largest Inventory Capacity 5 | 5 5 Average Capacity 5 | 5 5 Most Carried 5 | 2 5 Average Carried 3 | . 4 Final Capacity 5 | 5 5 Final Carried 3 | 2 3 Class Distribution -------------------- 100% | Mutant Dominant Class ---------------- Mutant | -10/Materials Resources | -11 -10 ----------- Run | Yrd Mat Matter Collected 441 | 256 185 Remotely . | . . Salvage Created 417 | 33 384 Parts 30 | 2 28 Haulers Intercepted . | . . Recyclers Shooed 1 | . 1 Parts Field Recycled . | . . Retrieved Matter . | . . Parts Self-Destructed . | . . Prevented . | . . Kills | -11 -10 ------- Run | Yrd Mat Combat Hostiles Destroyed 12 | 1 11 Guns 12 | 1 11 Classes Destroyed 4 | 1 3 Recycler 1 | . 1 Watcher 1 | . 1 Swarmer 6 | . 6 Grunt 6 | 1 5 Best Kill Streak 4 | 1 4 Combat Bots Only 3 | 1 3 Max Kills in Single Turn 1 | 1 1 Gunslinging . | . . Exploded . | . . Melee . | . . Uniques/NPCs Destroyed . | . . Combat | -11 -10 -------- Run | Yrd Mat Hostile Shots Fired 105 | 2 103 Missed 19 | 1 18 Hits 86 | 1 85 Projectile 86 | 1 85 Damage Taken 861 | 10 851 Core 255 | . 255 Absorbed by Shields . | . . Core Remaining (%) 100 | 100 . Volleys Fired 54 | 2 52 Largest 2 | 2 2 Hottest 70 | 70 70 Shots Fired 80 | 4 76 Gun 80 | 4 76 Cannon . | . . Launcher . | . . Special . | . . Kinetic 33 | 2 31 Thermal 47 | 2 45 Explosive . | . . Electromagnetic . | . . Robot Hit Streak 20 | 2 20 Robot Miss Streak 4 | 1 4 Penetration Max . | . . Secondary Targets . | . . Shots Hit Robots 54 | 2 52 Core Hits 24 | 2 22 Critical Kills . | . . Critical Parts Destroyed . | . . Critical Strikes 3 | . 3 Burn 3 | . 3 Melee Attacks . | . . Impact . | . . Slashing . | . . Piercing . | . . Sneak Attacks . | . . Combat Hostiles . | . . Follow-up Attacks . | . . Damage Inflicted 656 | 24 632 Guns 652 | 24 628 Cannons . | . . Explosions . | . . Melee . | . . Ramming 4 | . 4 Kinetic 288 | 11 277 Thermal 364 | 13 351 Explosive . | . . Electromagnetic . | . . Impact . | . . Slashing . | . . Piercing . | . . Highest Corruption . | . . Average Corruption . | . . Corruption Purged . | . . Corruption Blocked . | . . Overload Shots . | . . Overflow Damage . | . . Projectiles . | . . Explosions . | . . Melee . | . . Knockbacks . | . . Impact . | . . Kinetic . | . . Secondary . | . . Self-Inflicted Damage . | . . Shots . | . . Rammed . | . . Targets Rammed 2 | . 2 Kicked 2 | . 2 Crushed . | . . Highest Temperature 126 | 24 126 Average Temperature 41 | 14 43 Received Heat Transfer 267 | 6 261 Siege Activations . | . . Martial Activations . | . . Shielding Activations . | . . Robots Disrupted . | . . Combat Hostiles . | . . Robots Corrupted . | . . Combat Hostiles . | . . Parts Fried . | . . Impact Corruptions . | . . Robots Melted . | . . Combat Hostiles . | . . Parts Melted 1 | 1 . Heat Transferred 1236 | 37 1199 Parts Sabotaged . | . . Parts Stolen . | . . Parts Stripped . | . . Power Chain Reactions . | . . Alert | -11 -10 ------- Run | Yrd Mat Maximum Alert Level . | . . Low Security (%) 100 | 100 100 Level 1 . | . . Level 2 . | . . Level 3 . | . . Level 4 . | . . Level 5 . | . . High Security . | . . Max Security . | . . Peak Influence 106 | 20 106 Initial 6 | . 6 Average 51 | 2 59 Influence Increases 368 | 20 348 Destroy 0b10 Robot/C 240 | 20 220 Destroy 0b10 Robot/NC 10 | . 10 Destroy Leader 42 | . 42 Successful Hack 29 | . 29 Destroy Structure 2 | . 2 Lose Combat Pursuer 45 | . 45 Influence Decreases 283 | 10 273 Entered New Map 4 | . 4 Time Decay 229 | 10 219 Lost Part 50 | . 50 Squads Dispatched 4 | . 4 Investigation 4 | . 4 Extermination . | . . Reinforcement . | . . Assault . | . . Garrison . | . . Intercept . | . . Searches Triggered . | . . Construction Impeded . | . . Haulers Reinforced . | . . Active Scanning Responses . | . . Cargo Convoy Interrupts . | . . Stealth | -11 -10 --------- Run | Yrd Mat Distress Signals . | . . Communications Jammed . | . . Distress Signals . | . . Times Spotted 19 | 1 18 Peak Tracking Total 4 | 1 4 Tactical Retreats 3 | . 3 Traps | -11 -10 ------- Run | Yrd Mat Traps Triggered 2 | . 2 Indirectly . | . . Trap Hack Attempts . | . . Triggered . | . . Disarmed . | . . Reprogrammed . | . . Reused . | . . Traps Extracted . | . . Installed . | . . Triggered . | . . Machines | -11 -10 ---------- Run | Yrd Mat Machines Disabled . | . . Max in Single Turn . | . . Machines Repaired . | . . Machines Dismantled . | . . Machines Sabotaged . | . . Overloaded Fab Kills . | . . Hacking | -11 -10 --------- Run | Yrd Mat Machines Accessed 7 | . 7 Terminals 4 | . 4 Fabricators . | . . Repair Stations 1 | . 1 Recycling Units 2 | . 2 Scanalyzers . | . . Garrison Access . | . . Total Hacks 19 | . 19 Successful 10 | . 10 Failed 9 | . 9 Catastrophic 1 | . 1 Database Lockouts . | . . Manual . | . . Terminals 12 | . 12 Fabricators . | . . Repair Stations 3 | . 3 Recycling Units 4 | . 4 Scanalyzers . | . . Garrison Access . | . . Terminal Hacks 5 | . 5 Alert Level 1 | . 1 Transport Status 1 | . 1 Assault Status 1 | . 1 Registered Components 1 | . 1 Zone Layout 1 | . 1 Fabricator Hacks . | . . Repair Station Hacks 1 | . 1 Scan Component 1 | . 1 Recycling Unit Hacks 4 | . 4 Process 2 | . 2 Report Inventory 2 | . 2 Scanalyzer . | . . Garrison Access Hacks . | . . Unauthorized Hacks . | . . Terminals . | . . Fabricators . | . . Repair Stations . | . . Recycling Units . | . . Scanalyzers . | . . Garrison Access . | . . Data Cores Recovered . | . . Used . | . . Hacking Detections 5 | . 5 Full Trace Events 4 | . 4 Feedback Events . | . . Feedback Blocked . | . . Robot Schematics Acquired . | . . Robots Built . | . . Authchips . | . . Time . | . . Total Robot Build Rating . | . . Part Schematics Acquired . | . . Parts Built . | . . Authchips . | . . Time . | . . Total Part Build Rating . | . . Parts Repaired . | . . Time . | . . Parts Recycled . | . . Recycled Matter 39 | . 39 Retrieved Matter . | . . Retrieved Components . | . . Parts Scanalyzed . | . . Part Schematics Acquired . | . . Parts Damaged . | . . Bothacking | -11 -10 ------------ Run | Yrd Mat Used RIF Installer . | . . Robots Hacked . | . . Non-combat . | . . Combat . | . . Robot Hacks Applied . | . . Relay Couplers Released . | . . Fabnet Peak Effective % . | . . Robots Rewired . | . . Allies Hacked . | . . Hacks Repelled . | . . Allies | -11 -10 -------- Run | Yrd Mat Total Allies . | . . Largest Group . | . . Highest-Rated Group . | . . Highest-Rated Ally . | . . Total Orders . | . . Ally Attacks . | . . Total Damage . | . . Kills . | . . Allies Corrupted . | . . Allies Melted . | . . Intel | -11 -10 ------- Run | Yrd Mat Active Infowar (turns) . | . . Robot Analysis Total . | . . Derelict Logs Recovered . | . . Drone Launches . | . . Drone Recoveries . | . . Exploration | -11 -10 ------------- Run | Yrd Mat Turns Passed 607 | 84 523 Spaces Moved 361 | 69 292 Core 23 | 19 4 Treads . | . . Legs 338 | 50 288 Wheels . | . . Hover . | . . Flight . | . . Fastest Speed 50 | 50 50 Average Speed 115 | 100 119 Slowest Speed 120 | 120 120 Overloaded Moves . | . . Propulsion Burnouts . | . . Robots Hopped . | . . Potential Cave-ins . | . . Cave-ins Triggered . | . . Exploration Rate (%) 29 | 5 53 Regions Visited 1 Branch Regions . Pre-discovered Areas . | . . Known Exits Taken . | . . Unknown Exits Taken 1 | 1 . Scrap Searched . | . . Spaces Dug . | . . Terrain Destroyed . | . . Melee . | . . Projectile . | . . AOE . | . . Terrain Rammed . | . . Walls Destroyed . | . . Machines Disabled . | . . Actions | -11 -10 --------- Run | Yrd Mat Total 468 | 77 391 Wait 16 | . 16 Move 360 | 68 292 Hop . | . . Pick Up 10 | 2 8 Fast Attach 14 | 5 9 Attach 3 | . 3 Detach . | . . Swap 2 | . 2 Drop 7 | . 7 Fire 54 | 2 52 Melee . | . . Ram . | . . Kick 2 | . 2 Crush . | . . Escape Stasis . | . . Rewire . | . . Trap . | . . Miscellaneous . | . . Route ------- -11/Scrapyard -10/Materials (discovered 3 exits: *Mat x2 / [*Min]) History --------- Turn | Location | Event 2 | -11/Scrapyard | Met Revision 17 63 | -11/Scrapyard | Discovered new exit (range 8) 85 | -11/Scrapyard | Entered Materials 339 | -10/Materials | Build established: Mutant 346 | -10/Materials | Discovered new exit (range 14) 363 | -10/Materials | Identified exit to Materials 446 | -10/Materials | Discovered exit to Materials (range 11) 484 | -10/Materials | Core integrity fell below 50% 532 | -10/Materials | Core integrity fell below 20% 563 | -10/Materials | Lost 5 parts (1p2n2w) 593 | -10/Materials | Discovered new exit (range 10) 608 | -10/Materials | Destroyed by G-34 Mercenary with Small Laser Last Messages --------------- Downloaded coordinate data. ALERT: Suspicious activity at Terminal M002. Dispatching Investigation squad. EXIT=FOUND Triggered Blade Trap. Massive razor-sharp blades shoot up from within the floor. Aluminum Leg severed. Lgt. Assault Rifle severed. Aluminum Leg severed. Acquired Aluminum Leg. Triggered Blade Trap. Massive razor-sharp blades shoot up from within the floor. Lgt. Ion Engine severed. Aluminum Leg severed. Acquired Lgt. Assault Rifle. U-05 Engineer lays Concrete. Acquired Aluminum Leg. Acquired Lgt. Ion Engine. Map ----- +----------------------------------------------------+ | | | | | | | | | ?????????????????????????????????????????? | | ?????????????????????????????????????????? | | ?????????????????????????????????????????? | | ?????????????????????????????????????????? | | ?????????????????????????????????????????? | | ?????????????????????????????????????????? | | ????????????????????????###??????????????? | | ???????????????????????#"""#?????????????? | | ?????????????????????##"!!!"##???????????? | | ?####????????????????#"" ""#???????????? | | ?# ????????????????? #???????????? | | ?# < ????????????????? < #???????????? | | ?# ?????????????!??? #???????????? | | ?# ?????????????????? ??#?????????? | | ?? ?????????????????? ?? #?????????? | | ?? ??????????????????# ### ###???????? | | ?? ??????????????????#^ #???????? | | ### #??????????????????# +???????? | | # #??????????????????# !!! #???????? | | # #####?????????????## !!! #???????? | | # ############+## !!! #???????? | | # g g @ #???????? | | / " u k #???????? | | " # #???????? | | " # * ############+## u #???????? | | " ### ###??????# T ####+##### #???????? | | #?#+########## #????????? ??????? | | ###?#== ## #??????????####?????? | | ????#[ ## #???????????????????? | | ????# ##*= #???????????????????? | | ????# ## """ #???????????????????? | | ????# ## """ #???????????????????? | | ????# ## """ #???????????????????? | | ????# ## #???????????????????? | | ????# ##= #???????????????????? | | ????#####+###### #???????????????????? | | ???????# + #???????????????????? | | ???????# ###########???????????????????? | | ???????# #?????????????????????????????? | | ???????# #?????????????????????????????? | | ???????# ################# ????????????? | | ???????# T???????????? | | ???????# ???????????? | | ##?????# ???????????? | | #?????#######/##########/#??????????????? | | ####### #????????????????????? | +----------------------------------------------------+ Best States ------------- Heat Dissipation 25 Energy Generation 10 Energy Capacity 125 Matter Stores 300 Matter Capacity 300 Sight Range 16 Terrain Scan Density 10 Evasion (%) 55 Item Schematics ----------------- None Robot Schematics ------------------ None Fabricated ------------ Nothing Repaired ---------- Nothing Alien Tech Used ----------------- None Achievements -------------- None Challenges ------------ None Game ------ Seed IntegratedLongswordStick Manual? 0 Play Time 00:11:03 Cumulative 0.4 hours Start 2025.06.06 @ 15:47:41 End 2025.06.06 @ 15:56:28 Sessions 1 Manual Loads 0 Difficulty Rogue Special Mode None Game No. 3 Rogue 3 Adventurer 0 Explorer 0 Win Type - Total 0 Types 0/0/0/0/0/0/0/0/0/0 Lore% 0 Gallery% 2 Achievement% 5 Wizard Run 0 Options --------- Layout 1 ASCII 0 Keyboard 1 Movement Numpad Keybinds 0 Fullscreen 1 Font 48/Smallcaps Map View 50x35 Zoom Use 0% Tactical HUD 0 Map Filters NONE Filters NONE Steam 1 RUN: ed157c55-5282-415d-9733-d94fc28f97a4